fUST/lending_fUST_20241014
["ID","MTS","AMOUNT","RATE_DAILY","PERIOD"]
[340219435,1728852638337,-250.0,0.00025427,2]
[340219437,1728852638348,-250.0,0.00025494,2]
[340219439,1728852638359,-289.998,0.00025495,10]
[340219441,1728852638370,-501.42109849,0.000255,2]
[340219443,1728852638380,-534.69335614,0.000255,2]
[340219445,1728852638390,-154.62623966,0.00025542,2]
[340219448,1728852638400,-250.0,0.00025561,2]
[340219450,1728852638410,-250.0,0.00025628,2]
[340219452,1728852638420,-258.03870099,0.0002565,2]
[340219454,1728852638431,-500.0,0.0002565,2]
[340219456,1728852638441,-500.0,0.0002565,2]
[340219458,1728852638451,-250.0,0.00025695,2]
[340219460,1728852638463,-250.0,0.00025762,2]
[340219462,1728852638472,-500.0,0.00026183,10]
[340219464,1728852638482,-151.236,0.00026201,2]
[340219466,1728852638491,-526.0,0.00026201,2]
[340219468,1728852638501,-155.0,0.00026201,2]
[340219470,1728852638511,-1157.0,0.00026201,2]
[340219472,1728852638520,-1078.557,0.00026201,2]
[340219474,1728852638530,-171.987,0.00026201,2]
[340219476,1728852638540,-500.0,0.000264,2]
[340219478,1728852638549,-500.0,0.000264,2]
[340219480,1728852638559,-200.0,0.0002667,15]
[340219483,1728852638569,-500.0,0.00026848,2]
[340219485,1728852638579,-500.0,0.00026848,2]
[340219487,1728852638588,-240.02197827,0.00026848,2]
[340219488,1728852638597,-469.02797334,0.00026848,2]
[340219491,1728852638611,-500.0,0.00026848,2]
[340219493,1728852638623,-500.0,0.00026848,2]
[340219495,1728852638632,-500.0,0.00026848,2]
[340219497,1728852638642,-4536.67899136,0.00026882,2]
[340219963,1728852645669,5000.0,0.00024001,2]
[340219964,1728852801968,153.0,0.0002488,120]
[340220017,1728853640140,-166.522363,0.00024671,2]
[340220018,1728853640160,-176.64032,0.00024859,2]
[340220019,1728853640183,-150.0,0.00025,2]
[340220020,1728853640204,-176.64032,0.00025544,2]
[340220021,1728853640226,-250.0,0.00025573,2]
[340220022,1728853640250,-250.0,0.00025644,2]
[340220023,1728853640271,-250.0,0.00025714,2]
[340220024,1728853640292,-250.0,0.00025784,2]
[340220025,1728853640315,-250.0,0.00025854,2]
[340220026,1728853640335,-250.0,0.00025924,2]
[340220027,1728853640355,-292.07,0.00025933,11]
[340220028,1728853640376,-300.0,0.00025933,2]
[340220029,1728853640396,-300.0,0.00025933,2]
[340220030,1728853640416,-10114.93244991,0.00025934,2]
[340220080,1728853832011,-168.068325,0.00025264,2]
[340220082,1728853832022,-300.0,0.00025278,2]
[340220084,1728853832032,-99.771675,0.00025278,2]
[340220566,1728853838466,-200.228325,0.00025278,2]
[340220568,1728853838476,-2274.79003377,0.00025279,2]
[340222109,1728853855539,1471.64123672,0.00024001,2]
[340222120,1728854323583,770.78928641,0.00024001,2]
[340222121,1728854340200,3222.0542422,0.00024001,2]
[340222524,1728855257850,176.64032,0.00023858,2]
[340222526,1728855425220,24900.0,0.00023627,2]
[340222527,1728855725677,150.0,0.00023503,2]
[340222528,1728855725731,4600.7845563,0.00023466,2]
[340222529,1728855726154,4600.7845564,0.00023778,2]
[340222530,1728855726193,150.0,0.00023819,2]
[340222533,1728856002574,97800.215652,0.0001,2]
[340222534,1728856004143,166.6666669,0.00023378,2]
[340222535,1728856029251,-250.0,0.00024112,2]
[340222536,1728856029277,-250.0,0.00024178,2]
[340222537,1728856029298,-250.0,0.00024244,2]
[340222538,1728856029319,-250.0,0.0002431,2]
[340222539,1728856029340,-250.0,0.00024376,2]
[340222540,1728856029362,-125.52288695,0.00024442,2]
[340222541,1728856032474,24900.0,0.00023797,2]
[340222683,1728856235435,-124.47711305,0.00024442,2]
[340222684,1728856235444,-164.928839,0.00024455,2]
[340222685,1728856235453,-250.0,0.00024508,2]
[340222686,1728856235550,-250.0,0.00024575,2]
[340222687,1728856235560,-438.0633801,0.000246,2]
[340222688,1728856235570,-250.0,0.00024641,2]
[340222689,1728856235580,-250.0,0.00024707,2]
[340222690,1728856235589,-250.0,0.00024773,2]
[340222691,1728856235599,-250.0,0.00024839,2]
[340222692,1728856235608,-250.0,0.00024905,2]
[340222693,1728856235618,-4128.03947477,0.00024962,2]
[340222694,1728856235627,-250.0,0.00024971,2]
[340222695,1728856235637,-239.49354595,0.00024978,2]
[340222696,1728856235646,-300.0,0.00024978,2]
[340222697,1728856235655,-300.0,0.00024978,2]
[340222698,1728856235665,-7918.99096092,0.00024979,3]
[340222699,1728856235674,-1000.0,0.0002498,2]
[340222700,1728856235683,-1035.60537939,0.00025,2]
[340222701,1728856235692,-164.76244549,0.00025,2]
[340222702,1728856235702,-202.52971641,0.00025,2]
[340222703,1728856235711,-507.65320852,0.00025,2]
[340222704,1728856235721,-345.14966013,0.00025,2]
[340222705,1728856235731,-824.10757507,0.00025,2]
[340222706,1728856235740,-250.0,0.00025038,2]
[340222707,1728856235749,-874.05,0.00025057,3]
[340222708,1728856235758,-1334.5,0.00025057,10]
[340222709,1728856235767,-437.03,0.00025057,3]
[340222710,1728856235777,-1112.08,0.00025057,10]
[340222711,1728856235787,-293.32,0.00025057,3]
[340222712,1728856235796,-1206.24507009,0.00025058,10]
[340222713,1728856237360,250.0,0.00024057,2]
[340222714,1728856237598,250.0,0.00024123,2]
[340222716,1728856237862,250.0,0.00024189,2]
[340222717,1728856238072,250.0,0.00024255,2]
[340222747,1728856238580,-250.0,0.00024321,2]
[340222749,1728856238589,-250.0,0.00024387,2]
[340222751,1728856238599,-500.0,0.00025062,2]
[340222753,1728856238609,-500.0,0.00025062,2]
[340222755,1728856238619,-500.0,0.00025062,2]
[340222757,1728856238629,-500.0,0.00025062,2]
[340222759,1728856238638,-500.0,0.00025062,2]
[340222761,1728856238647,-544.98894579,0.00025062,2]
[340222763,1728856238657,-388.35893397,0.00025062,2]
[340222925,1728856240435,-250.0,0.00024453,2]
[340222926,1728856240446,-250.0,0.00024519,2]
[340222927,1728856240458,-250.0,0.00024585,2]
[340222928,1728856240468,-250.0,0.00024651,2]
[340222929,1728856240478,-250.0,0.00024717,2]
[340222930,1728856240490,-250.0,0.00024783,2]
[340222931,1728856240499,-250.0,0.00024849,2]
[340222932,1728856240509,-111.64106603,0.00025062,2]
[340222933,1728856240518,-500.0,0.00025062,2]
[340222935,1728856240529,-500.0,0.00025062,2]
[340222937,1728856240539,-300.0,0.00025062,2]
[340222939,1728856240549,-155.49298283,0.00025062,2]
[340222941,1728856240563,-344.50701717,0.00025062,2]
[340222943,1728856240573,-500.0,0.00025062,2]
[340222945,1728856240584,-500.0,0.00025062,2]
[340222948,1728856240595,-500.0,0.00025062,2]
[340222950,1728856240607,-500.0,0.00025062,2]
[340222952,1728856240619,-151.0,0.00025062,7]
[340222954,1728856240631,-162.368823,0.00025062,7]
[340222957,1728856240642,-173.002346,0.00025062,7]
[340222959,1728856240653,-173.002346,0.00025062,7]
[340222961,1728856240663,-151.0,0.00025062,7]
[340222963,1728856240672,-179.408732,0.00025062,7]
[340222965,1728856240682,-173.002346,0.00025062,7]
[340222967,1728856240693,-173.002346,0.00025062,7]
[340222969,1728856240703,-214.436786,0.00025062,7]
[340222971,1728856240713,-214.436786,0.00025062,7]
[340222973,1728856240723,-151.0,0.00025062,7]
[340222975,1728856240733,-151.0,0.00025062,7]
[340222977,1728856240743,-151.0,0.00025062,7]
[340222979,1728856240754,-151.0,0.00025062,7]
[340222981,1728856240765,-214.436786,0.00025062,7]
[340222983,1728856240775,-214.436786,0.00025062,7]
[340222986,1728856240787,-151.0,0.00025062,7]
[340222988,1728856240798,-214.823713,0.00025062,7]
[340222990,1728856240809,-151.0,0.00025062,7]
[340222992,1728856240820,-151.0,0.00025062,7]
[340222994,1728856240832,-157.571816,0.00025062,7]
[340222997,1728856240844,-151.0,0.00025062,2]
[340222999,1728856240855,-151.0,0.00025062,2]
[340223001,1728856240865,-151.0,0.00025062,7]
[340223003,1728856240875,-151.0,0.00025062,7]
[340223005,1728856240885,-151.0,0.00025062,7]
[340223007,1728856240895,-174.91569379,0.00025062,2]
[340223009,1728856240906,-63579.9065846,0.00025063,3]
[340223011,1728856240916,-714.62315772,0.00025063,3]
[340223013,1728856240925,-173.002346,0.00025063,7]
[340223015,1728856240935,-173.002346,0.00025063,7]
[340223017,1728856240944,-214.436786,0.00025063,7]
[340223019,1728856240954,-151.0,0.00025063,7]
[340223021,1728856240965,-151.0,0.00025063,7]
[340223023,1728856240974,-214.436786,0.00025063,7]
[340223025,1728856240984,-151.0,0.00025063,2]
[340223027,1728856240994,-151.0,0.00025063,7]
[340223029,1728856241004,-188.84398327,0.00025066,2]
[340223031,1728856241014,-167.28816619,0.00025066,2]
[340223033,1728856241024,-172.031048,0.00025067,7]
[340223036,1728856241034,-7188.15411334,0.00025067,7]
[340223038,1728856241046,-1647.63411782,0.00025067,7]
[340223040,1728856241056,-127159.813169,0.00025068,3]
[340223042,1728856241066,-1429.24631544,0.00025068,3]
[340223044,1728856241076,-151.0,0.00025068,7]
[340223046,1728856241087,-167.005211,0.00025068,7]
[340223048,1728856241097,-151.0,0.00025068,7]
[340223050,1728856241107,-151.0,0.00025068,7]
[340223052,1728856241116,-151.0,0.00025068,7]
[340223054,1728856241127,-310.649328,0.00025068,7]
[340223057,1728856241137,-310.649328,0.00025068,7]
[340223058,1728856241149,-177.194736,0.00025068,7]
[340223062,1728856241227,-151.0,0.00025068,7]
[340223064,1728856241238,-151.0,0.00025068,7]
[340223065,1728856241247,-151.0,0.00025068,7]
[340223066,1728856241256,-151.0,0.00025068,7]
[340223067,1728856241266,-271.88954,0.00025068,7]
[340223069,1728856241275,-271.88954,0.00025068,7]
[340223071,1728856241286,-271.88954,0.00025068,7]
[340223072,1728856241295,-271.88954,0.00025068,7]
[340223073,1728856241305,-269.02378,0.00025068,7]
[340223074,1728856241314,-269.02378,0.00025068,7]
[340223075,1728856241325,-167.563721,0.00025068,7]
[340223076,1728856241335,-269.02378,0.00025068,7]
[340223077,1728856241345,-151.0,0.00025068,7]
[340223078,1728856241355,-269.02378,0.00025068,7]
[340223079,1728856241364,-870.235256,0.00025068,7]
[340223080,1728856241374,-870.235256,0.00025068,7]
[340223081,1728856241386,-196.392212,0.00025068,7]
[340223082,1728856241398,-196.392212,0.00025068,7]
[340223083,1728856241407,-196.392212,0.00025068,7]
[340223084,1728856241416,-196.392212,0.00025068,7]
[340223085,1728856241427,-151.0,0.00025068,7]
[340223086,1728856241437,-151.0,0.00025068,7]
[340223087,1728856241446,-151.0,0.00025068,7]
[340223088,1728856241455,-151.0,0.00025068,7]
[340223089,1728856241465,-175.342029,0.00025068,7]
[340223090,1728856241476,-175.342029,0.00025068,7]
[340223091,1728856241486,-175.342029,0.00025068,7]
[340223092,1728856241495,-175.342029,0.00025068,7]
[340223093,1728856241504,-175.342029,0.00025068,7]
[340223094,1728856241514,-175.342029,0.00025068,7]
[340223095,1728856241525,-175.342029,0.00025068,7]
[340223096,1728856241536,-175.342029,0.00025068,7]
[340223097,1728856241546,-846.254817,0.00025068,7]
[340223098,1728856241556,-846.254817,0.00025068,7]
[340223099,1728856241566,-846.254817,0.00025068,7]
[340223100,1728856241576,-846.254817,0.00025068,7]
[340223101,1728856241589,-846.254817,0.00025068,7]
[340223102,1728856241599,-846.254817,0.00025068,7]
[340223103,1728856241609,-231.390015,0.00025068,7]
[340223104,1728856241619,-846.254817,0.00025068,7]
[340223105,1728856241629,-846.254817,0.00025068,7]
[340223106,1728856241638,-316.058544,0.00025068,7]
[340223107,1728856241649,-316.058544,0.00025068,7]
[340223108,1728856241659,-316.058544,0.00025068,7]
[340223109,1728856241671,-316.058544,0.00025068,7]
[340223110,1728856241681,-316.058544,0.00025068,7]
[340223111,1728856241693,-316.058544,0.00025068,7]
[340223112,1728856241703,-316.058544,0.00025068,7]
[340223113,1728856241716,-316.058544,0.00025068,7]
[340223114,1728856241728,-151.0,0.00025068,7]
[340223115,1728856241739,-151.0,0.00025068,7]
[340223116,1728856241750,-151.0,0.00025068,7]
[340223117,1728856241761,-151.0,0.00025068,7]
[340223118,1728856241772,-151.0,0.00025068,7]
[340223119,1728856241783,-151.0,0.00025068,7]
[340223120,1728856241793,-151.0,0.00025068,7]
[340223121,1728856241803,-151.0,0.00025068,7]
[340223122,1728856241813,-151.0,0.00025068,7]
[340223123,1728856241824,-234.1624,0.00025068,7]
[340223124,1728856241836,-151.0,0.00025068,7]
[340223125,1728856241846,-151.0,0.00025068,7]
[340223126,1728856241857,-151.0,0.00025068,7]
[340223127,1728856241867,-151.0,0.00025068,7]
[340223128,1728856241877,-226.27946,0.00025068,7]
[340223129,1728856241889,-226.27946,0.00025068,7]
[340223130,1728856241900,-226.27946,0.00025068,7]
[340223131,1728856241911,-151.0,0.00025068,7]
[340223132,1728856241922,-226.27946,0.00025068,7]
[340223133,1728856241933,-151.0,0.00025068,7]
[340223134,1728856241943,-151.0,0.00025068,7]
[340223135,1728856241954,-151.0,0.00025068,7]
[340223136,1728856241965,-226.27946,0.00025068,7]
[340223137,1728856241975,-226.27946,0.00025068,7]
[340223138,1728856241984,-226.27946,0.00025068,7]
[340223139,1728856241993,-226.27946,0.00025068,7]
[340223140,1728856242003,-173.002346,0.00025068,7]
[340223141,1728856242012,-173.002346,0.00025068,7]
[340223142,1728856242022,-173.002346,0.00025068,7]
[340223143,1728856242031,-173.002346,0.00025068,7]
[340223144,1728856242040,-173.002346,0.00025068,7]
[340223145,1728856242051,-173.002346,0.00025068,7]
[340223146,1728856242060,-173.002346,0.00025068,7]
[340223147,1728856242070,-173.002346,0.00025068,7]
[340223148,1728856242079,-173.002346,0.00025068,7]
[340223149,1728856242089,-173.002346,0.00025068,7]
[340223150,1728856242099,-173.002346,0.00025068,7]
[340223151,1728856242108,-173.002346,0.00025068,7]
[340223152,1728856242118,-173.002346,0.00025068,7]
[340223153,1728856242131,-173.002338,0.00025068,7]
[340223154,1728856242141,-151.0,0.00025068,7]
[340223155,1728856242150,-151.0,0.00025068,7]
[340223156,1728856242161,-151.0,0.00025068,7]
[340223157,1728856242172,-151.0,0.00025068,7]
[340223158,1728856242183,-214.436786,0.00025068,7]
[340223159,1728856242194,-214.436786,0.00025068,7]
[340223160,1728856242205,-214.436786,0.00025068,7]
[340223161,1728856242217,-214.436786,0.00025068,7]
[340223162,1728856242227,-214.436786,0.00025068,7]
[340223163,1728856242237,-214.436786,0.00025068,7]
[340223164,1728856242249,-151.0,0.00025068,7]
[340223165,1728856242259,-214.436786,0.00025068,7]
[340223166,1728856242269,-151.0,0.00025068,7]
[340223167,1728856242279,-151.0,0.00025068,7]
[340223168,1728856242289,-151.0,0.00025068,7]
[340223169,1728856242299,-151.0,0.00025068,7]
[340223170,1728856242311,-151.0,0.00025068,7]
[340223171,1728856242322,-151.0,0.00025068,7]
[340223172,1728856242331,-151.0,0.00025068,7]
[340223173,1728856242343,-214.436786,0.00025068,7]
[340223174,1728856242354,-151.0,0.00025068,7]
[340223175,1728856242365,-151.0,0.00025068,7]
[340223176,1728856242375,-214.436786,0.00025068,7]
[340223177,1728856242386,-151.0,0.00025068,7]
[340223178,1728856242396,-151.0,0.00025068,7]
[340223179,1728856242406,-214.436786,0.00025068,7]
[340223180,1728856242416,-202.810535,0.00025068,7]
[340223181,1728856242427,-151.0,0.00025068,7]
[340223182,1728856242436,-214.436786,0.00025068,7]
[340223183,1728856242446,-214.436786,0.00025068,7]
[340223184,1728856242456,-214.436786,0.00025068,7]
[340223185,1728856242466,-214.436788,0.00025068,7]
[340223186,1728856242477,-151.0,0.00025068,2]
[340223187,1728856242488,-151.0,0.00025068,2]
[340223188,1728856242499,-171.917766,0.00025068,7]
[340223189,1728856242511,-151.0,0.00025068,2]
[340223190,1728856242523,-171.917766,0.00025068,7]
[340223191,1728856242533,-151.0,0.00025068,2]
[340223192,1728856242544,-171.917766,0.00025068,7]
[340223193,1728856242555,-151.0,0.00025068,2]
[340223194,1728856242565,-171.917766,0.00025068,7]
[340223195,1728856242576,-151.0,0.00025068,2]
[340223196,1728856242587,-267.265627,0.00025068,2]
[340223197,1728856242598,-171.917766,0.00025068,7]
[340223198,1728856242607,-171.917766,0.00025068,7]
[340223199,1728856242619,-171.917766,0.00025068,7]
[340223200,1728856242629,-171.917766,0.00025068,7]
[340223201,1728856242639,-63579.9065846,0.00025068,3]
[340223202,1728856242651,-714.62315772,0.00025068,3]
[340223203,1728856242663,-151.0,0.0002507,7]
[340223204,1728856242675,-151.0,0.0002507,7]
[340223205,1728856242685,-151.0,0.0002507,7]
[340223206,1728856242694,-151.0,0.0002507,7]
[340223207,1728856242705,-246.58957,0.0002507,7]
[340223208,1728856242715,-246.58957,0.0002507,7]
[340223209,1728856242725,-151.0,0.0002507,7]
[340223213,1728856242794,-151.0,0.0002507,7]
[340223214,1728856242804,-151.0,0.0002507,7]
[340223216,1728856242814,-207.797302,0.0002507,7]
[340223217,1728856242824,-151.0,0.0002507,7]
[340223219,1728856242834,-207.797302,0.0002507,7]
[340223220,1728856242844,-151.0,0.0002507,7]
[340223221,1728856242854,-157.175027,0.0002507,7]
[340223222,1728856242864,-281.784425,0.0002507,7]
[340223223,1728856242873,-151.0,0.0002507,7]
[340223224,1728856242883,-151.0,0.0002507,7]
[340223225,1728856242892,-151.0,0.0002507,7]
[340223226,1728856242902,-151.0,0.0002507,7]
[340223227,1728856242912,-151.0,0.0002507,3]
[340223228,1728856242922,-225.595448,0.0002507,3]
[340223229,1728856242932,-151.0,0.0002507,7]
[340223230,1728856242944,-151.0,0.0002507,7]
[340223231,1728856242954,-151.0,0.0002507,7]
[340223232,1728856242966,-160.294878,0.0002507,7]
[340223233,1728856242975,-310.649328,0.0002507,7]
[340223234,1728856242988,-310.649328,0.0002507,7]
[340223235,1728856242999,-310.649328,0.0002507,7]
[340223236,1728856243010,-310.649328,0.0002507,7]
[340223237,1728856243021,-151.0,0.0002507,7]
[340223238,1728856243031,-151.0,0.0002507,7]
[340223239,1728856243041,-151.0,0.0002507,7]
[340223240,1728856243050,-151.0,0.0002507,7]
[340223241,1728856243061,-151.0,0.0002507,7]
[340223242,1728856243071,-156.826037,0.0002507,7]
[340223243,1728856243080,-271.88954,0.0002507,7]
[340223244,1728856243089,-271.88954,0.0002507,7]
[340223245,1728856243100,-271.88954,0.0002507,7]
[340223246,1728856243112,-271.88954,0.0002507,7]
[340223247,1728856243123,-271.88954,0.0002507,7]
[340223248,1728856243134,-271.88954,0.0002507,7]
[340223249,1728856243145,-269.02378,0.0002507,7]
[340223250,1728856243155,-269.02378,0.0002507,7]
[340223251,1728856243165,-269.02378,0.0002507,7]
[340223252,1728856243175,-269.02378,0.0002507,7]
[340223253,1728856243185,-269.02378,0.0002507,7]
[340223254,1728856243195,-269.02378,0.0002507,7]
[340223255,1728856243205,-870.235256,0.0002507,7]
[340223256,1728856243214,-870.235256,0.0002507,7]
[340223257,1728856243224,-870.235256,0.0002507,7]
[340223258,1728856243233,-870.235256,0.0002507,7]
[340223259,1728856243243,-870.235256,0.0002507,7]
[340223260,1728856243252,-870.235256,0.0002507,7]
[340223261,1728856243263,-870.235256,0.0002507,7]
[340223262,1728856243272,-870.235256,0.0002507,7]
[340223263,1728856243281,-196.392212,0.0002507,7]
[340223264,1728856243291,-196.392212,0.0002507,7]
[340223265,1728856243301,-196.392212,0.0002507,7]
[340223266,1728856243310,-196.392212,0.0002507,7]
[340223267,1728856243319,-196.392212,0.0002507,7]
[340223269,1728856243329,-196.392212,0.0002507,7]
[340223271,1728856243339,-151.0,0.0002507,7]
[340223272,1728856243349,-151.0,0.0002507,7]
[340223273,1728856243359,-175.342029,0.0002507,7]
[340223274,1728856243368,-175.342029,0.0002507,7]
[340223275,1728856243377,-175.342029,0.0002507,7]
[340223277,1728856243387,-175.342029,0.0002507,7]
[340223279,1728856243397,-175.342029,0.0002507,7]
[340223281,1728856243406,-175.342029,0.0002507,7]
[340223283,1728856243415,-175.342029,0.0002507,7]
[340223285,1728856243426,-175.342029,0.0002507,7]
[340223287,1728856243435,-175.342029,0.0002507,7]
[340223289,1728856243445,-175.342029,0.0002507,7]
[340223291,1728856243454,-175.342029,0.0002507,7]
[340223293,1728856243464,-175.34202005,0.0002507,7]
[340223295,1728856243474,-846.254817,0.0002507,7]
[340223297,1728856243483,-846.254817,0.0002507,7]
[340223299,1728856243492,-846.254817,0.0002507,7]
[340223301,1728856243502,-846.254817,0.0002507,7]
[340223303,1728856243512,-846.254817,0.0002507,7]
[340223305,1728856243521,-846.254817,0.0002507,7]
[340223307,1728856243532,-846.254817,0.0002507,7]
[340223309,1728856243543,-846.254817,0.0002507,7]
[340223312,1728856243554,-846.254817,0.0002507,7]
[340223314,1728856243565,-846.254817,0.0002507,7]
[340223316,1728856243575,-846.254817,0.0002507,7]
[340223318,1728856243585,-846.254817,0.0002507,7]
[340223320,1728856243596,-316.058544,0.0002507,7]
[340223322,1728856243608,-316.058544,0.0002507,7]
[340223324,1728856243619,-316.058544,0.0002507,7]
[340223327,1728856243630,-316.058544,0.0002507,7]
[340223329,1728856243641,-316.058544,0.0002507,7]
[340223331,1728856243651,-316.058544,0.0002507,7]
[340223333,1728856243660,-316.058544,0.0002507,7]
[340223335,1728856243670,-316.058544,0.0002507,7]
[340223337,1728856243680,-316.058544,0.0002507,7]
[340223339,1728856243690,-316.058544,0.0002507,7]
[340223341,1728856243700,-316.058544,0.0002507,7]
[340223343,1728856243710,-316.05855294,0.0002507,7]
[340223345,1728856243723,-151.0,0.0002507,7]
[340223347,1728856243732,-151.0,0.0002507,7]
[340223349,1728856243742,-151.0,0.0002507,7]
[340223351,1728856243752,-151.0,0.0002507,7]
[340223353,1728856243763,-248.639075,0.0002507,7]
[340223355,1728856243773,-180.426799,0.0002507,7]
[340223357,1728856243783,-151.0,0.0002507,7]
[340223359,1728856243793,-151.0,0.0002507,7]
[340223361,1728856243802,-151.0,0.0002507,7]
[340223363,1728856243812,-151.0,0.0002507,7]
[340223365,1728856243821,-151.0,0.0002507,7]
[340223367,1728856243832,-151.0,0.0002507,7]
[340223369,1728856243841,-226.27946,0.0002507,7]
[340223371,1728856243851,-226.27946,0.0002507,7]
[340223373,1728856243860,-226.27946,0.0002507,7]
[340223375,1728856243870,-151.0,0.0002507,7]
[340223377,1728856243879,-226.27946,0.0002507,7]
[340223379,1728856243889,-151.0,0.0002507,7]
[340223381,1728856243899,-226.27946,0.0002507,7]
[340223383,1728856243910,-239.277238,0.0002507,7]
[340223385,1728856243921,-226.27946,0.0002507,7]
[340223387,1728856243932,-226.27946,0.0002507,7]
[340223389,1728856243942,-226.27946,0.0002507,7]
[340223391,1728856243953,-226.27946,0.0002507,7]
[340223393,1728856243963,-226.27946,0.0002507,7]
[340223395,1728856243975,-226.27946,0.0002507,7]
[340223397,1728856243985,-226.279463,0.0002507,7]
[340223398,1728856243995,-151.0,0.0002507,7]
[340223400,1728856244005,-151.0,0.0002507,7]
[340223402,1728856244016,-151.0,0.0002507,7]
[340223404,1728856244026,-216.278257,0.0002507,7]
[340223407,1728856244037,-171.917766,0.0002507,7]
[340223409,1728856244047,-171.917766,0.0002507,7]
[340223411,1728856244057,-171.917766,0.0002507,7]
[340223413,1728856244066,-171.917766,0.0002507,7]
[340223414,1728856244076,-171.917766,0.0002507,7]
[340223416,1728856244085,-171.917766,0.0002507,7]
[340223419,1728856244095,-171.917766,0.0002507,7]
[340223421,1728856244105,-171.917766,0.0002507,7]
[340223422,1728856244114,-171.917766,0.0002507,7]
[340223425,1728856244125,-171.917766,0.0002507,7]
[340223427,1728856244134,-171.917766,0.0002507,7]
[340223436,1728856244213,-171.91776,0.0002507,7]
[340223438,1728856244225,-63579.9065846,0.0002507,3]
[340223440,1728856244236,-2143.86947316,0.0002507,3]
[340223442,1728856244248,-870.235256,0.00025072,7]
[340223444,1728856244260,-870.235256,0.00025072,7]
[340223446,1728856244271,-500.0,0.00025073,2]
[340223449,1728856244282,-500.0,0.00025073,2]
[340223451,1728856244294,-500.0,0.00025073,2]
[340223453,1728856244306,-500.0,0.00025073,2]
[340223455,1728856244316,-262.25716481,0.00025073,2]
[340223457,1728856244326,-500.0,0.00025073,2]
[340223459,1728856244337,-500.0,0.00025073,2]
[340223461,1728856244347,-398.73978154,0.00025073,2]
[340223464,1728856244359,-500.0,0.00025073,2]
[340223466,1728856244369,-500.0,0.00025073,2]
[340223468,1728856244381,-500.0,0.00025073,2]
[340223470,1728856244393,-500.0,0.00025073,2]
[340223472,1728856244404,-500.0,0.00025073,2]
[340223473,1728856244416,-500.0,0.00025073,2]
[340223474,1728856244427,-161.68279538,0.00025073,2]
[340223475,1728856244438,-338.98454189,0.00025073,2]
[340223476,1728856244448,-500.0,0.00025073,2]
[340223477,1728856244461,-151.900565,0.00025073,7]
[340223478,1728856244472,-151.0,0.00025073,7]
[340223479,1728856244482,-246.58957,0.00025073,7]
[340223480,1728856244494,-246.58957,0.00025073,7]
[340223481,1728856244504,-152.858791,0.00025073,7]
[340223482,1728856244514,-151.0,0.00025073,7]
[340223483,1728856244525,-294.774655,0.00025073,7]
[340223484,1728856244535,-207.797302,0.00025073,7]
[340223485,1728856244545,-151.0,0.00025073,7]
[340223486,1728856244555,-207.797302,0.00025073,7]
[340223487,1728856244566,-151.0,0.00025073,7]
[340223488,1728856244575,-297.921729,0.00025073,7]
[340223489,1728856244586,-151.0,0.00025073,7]
[340223490,1728856244597,-151.0,0.00025073,7]
[340223491,1728856244608,-151.0,0.00025073,3]
[340223492,1728856244619,-151.0,0.00025073,7]
[340223493,1728856244629,-151.0,0.00025073,7]